[Event "44th Chess Olympiad Women 2022"]
[Site "Chennai"]
[Date "2022.08.01"]
[Round "4.24"]
[White "Ortiz Verdezoto, Anahi"]
[Black "Chirivi C, Jenny Astrid"]
[Result "1-0"]
[WhiteElo "2046"]
[BlackElo "2157"]
[Annotator "RC"]
[PlyCount "111"]
[EventDate "2022.??.??"]
[TimeControl "60"]

1. d4 {[%emt 0:00:09]} Nf6 {[%emt 0:00:18]} 2. c4 {[%emt 0:00:11]} e6 {[%emt 0:
00:00]} 3. Nc3 {[%emt 0:00:21]} Bb4 {[%emt 0:00:20]} 4. e3 {[%emt 0:00:07]} O-O
{[%emt 0:00:22]} 5. Nge2 {[%emt 0:00:25]} Re8 {[%emt 0:00:29]} 6. a3 {[%emt 0:
00:00]} Bf8 {[%emt 0:00:26]} 7. Ng3 {[%emt 0:00:07]} d5 {[%emt 0:01:00]} 8. Bd3
{[%emt 0:00:43]} b6 {[%emt 0:02:43]} 9. O-O {[%emt 0:07:50]} Bb7 {[%emt 0:00:
00]} 10. b4 {[%emt 0:01:43]} Nbd7 {[%emt 0:05:27]} 11. Rb1 {[%emt 0:08:55]} c6
{[%emt 0:09:38]} 12. c5 {[%emt 0:11:59]} e5 {[%emt 0:04:51]} 13. a4 {[%emt 0:
00:00]} g6 {[%emt 0:17:44]} 14. f4 {[%emt 0:10:16]} exd4 {[%emt 0:18:50]} 15.
exd4 {[%emt 0:00:04]} bxc5 {[%emt 0:05:34]} 16. bxc5 {[%emt 0:03:30]} Qc8 {
[%emt 0:02:27]} 17. f5 {[%emt 0:04:41]} Bg7 {[%emt 0:01:41]} 18. fxg6 {[%emt 0:
00:00]} fxg6 {[%emt 0:01:43]} 19. Nce2 {[%emt 0:00:53]} Ba6 {[%emt 0:03:43]}
20. Bf4 {[%emt 0:02:15]} Bxd3 {[%emt 0:06:56]} 21. Qxd3 {[%emt 0:00:02]} Ne4 {
[%emt 0:00:16]} 22. a5 {[%emt 0:06:29]} a6 {[%emt 0:04:57]} 23. Rb4 {[%emt 0:
00:00]} Qd8 {[%emt 0:01:27]} 24. Rb7 {[%emt 0:00:40]} Kh8 {[%emt 0:04:09]} 25.
Qf3 {[%emt 0:11:15]} g5 {[%emt 0:01:52]} 26. Nh5 {[%emt 0:02:41]} Qe7 {[%emt 0:
00:00]} 27. Nxg7 {[%emt 0:00:38]} Qxg7 {[%emt 0:00:08]} 28. Qh3 {[%emt 0:02:52]
} Re7 {[%emt 0:01:30]} 29. Rxd7 {[%emt 0:00:27]} gxf4 {[%emt 0:00:08]} 30. Rxe7
{[%emt 0:00:12]} Qxe7 {[%emt 0:00:05]} 31. Nxf4 {[%emt 0:00:21]} Rg8 {[%emt 0:
00:00]} 32. Qe6 {[%emt 0:03:00]} Qg7 {[%emt 0:00:44]} 33. Qe5 {[%emt 0:01:05]}
Qxe5 {[%emt 0:01:43]} 34. dxe5 {[%emt 0:00:01]} Re8 {[%emt 0:00:14]} 35. Nd3 {
[%emt 0:00:07]} Rb8 {[%emt 0:00:39]} 36. h3 {[%emt 0:00:30]} Kg7 {[%emt 0:00:
00]} 37. h4 {[%emt 0:03:25]} h5 {[%emt 0:01:07]} 38. e6 {[%emt 0:00:10]} Nf6 {
[%emt 0:00:35]} 39. Re1 {[%emt 0:00:55]} Re8 {[%emt 0:00:19]} 40. Nf4 {[%emt 0:
00:00]} Ne4 {[%emt 0:00:28]} 41. Nxh5+ {[%emt 0:30:40]} Kg6 {[%emt 0:30:07]}
42. g4 {[%emt 0:00:00]} Nxc5 {[%emt 0:00:00]} 43. Rc1 {[%emt 0:00:00]} Nb3 {
[%emt 0:00:00]} 44. Rxc6 {[%emt 0:00:00]} Nxa5 {[%emt 0:00:00]} 45. Rxa6 {
[%emt 0:00:00]} Nc4 {[%emt 0:00:00]} 46. Nf4+ {[%emt 0:00:00]} Kf6 {[%emt 0:00:
00]} 47. Nxd5+ {[%emt 0:00:00]} Ke5 {[%emt 0:00:00]} 48. Nc7 {[%emt 0:00:00]}
Re7 {[%emt 0:00:00]} 49. Rc6 {[%emt 0:00:00]} Ne3 {[%emt 0:00:00]} 50. g5 {
[%emt 0:00:00]} Nf5 {[%emt 0:00:00]} 51. Rc5+ {[%emt 0:00:00]} Ke4 {[%emt 0:00:
00]} 52. h5 {[%emt 0:00:00]} Rg7 {[%emt 0:00:00]} 53. g6 {[%emt 0:00:00]} Kf4 {
[%emt 0:01:51]} 54. Nd5+ {[%emt 0:00:00]} Kg4 {[%emt 0:03:08]} 55. e7 {[%emt 0:
00:00]} Nxe7 {[%emt 0:02:31]} 56. Nxe7 {[%emt 0:00:00]} 1-0

[Event "44th Chess Olympiad Women 2022"]
[Site "Chennai"]
[Date "2022.08.01"]
[Round "4.25"]
[White "Bacic, Kristina"]
[Black "Terao, Juliana Sayumi"]
[Result "0-1"]
[WhiteElo "1866"]
[BlackElo "2223"]
[Annotator "NA RC"]
[PlyCount "102"]
[EventDate "2022.??.??"]
[TimeControl "60"]

1. d4 {[%emt 0:00:09]} d5 {[%emt 0:00:07]} 2. Nf3 {[%emt 0:00:14]} Nf6 {
[%emt 0:00:08]} 3. g3 {[%emt 0:00:30]} c5 {[%emt 0:01:04]} 4. c3 {[%emt 0:00:
00]} e6 {[%emt 0:01:52]} 5. Bg2 {[%emt 0:00:35]} Nc6 {[%emt 0:00:19]} 6. O-O {
[%emt 0:00:36]} Be7 {[%emt 0:03:56]} 7. dxc5 {[%emt 0:01:41]} Bxc5 {[%emt 0:00:
00]} 8. Bg5 {[%emt 0:00:42]} h6 {[%emt 0:03:16]} 9. Bxf6 {[%emt 0:00:27]} Qxf6
{[%emt 0:00:07]} 10. Nbd2 {[%emt 0:01:00]} O-O {[%emt 0:01:24]} 11. e4 {
[%emt 0:02:43]} Rd8 {[%emt 0:02:37]} 12. exd5 {[%emt 0:03:26]} exd5 {[%emt 0:
00:00]} 13. Nb3 {[%emt 0:03:52]} Bb6 {[%emt 0:00:18]} 14. Nbd4 {[%emt 0:03:13]}
Bg4 {[%emt 0:02:38]} 15. Nxc6 {[%emt 0:08:02]} bxc6 {[%emt 0:00:21]} 16. Qd3 {
[%emt 0:06:31]} a5 {[%emt 0:14:06]} 17. b4 {[%emt 0:10:10]} Bf5 {[%emt 0:06:38]
} 18. Qd2 {[%emt 0:08:32]} Be4 {[%emt 0:00:37]} 19. Qf4 {[%emt 0:14:18]} Qxf4 {
[%emt 0:02:35]} 20. gxf4 {[%emt 0:00:04]} axb4 {[%emt 0:00:26]} 21. cxb4 {
[%emt 0:00:19]} Bd3 {[%emt 0:27:52]} 22. Rfd1 {[%emt 0:05:28]} Ra3 {[%emt 0:00:
00]} 23. Ne5 {[%emt 0:04:11]} Bb5 {[%emt 0:00:14]} 24. Bf1 {[%emt 0:02:17]} Ba4
{[%emt 0:02:04]} 25. Rd3 {[%emt 0:02:22]} Rxd3 {[%emt 0:00:21]} 26. Nxd3 {
[%emt 0:02:21]} Bd4 {[%emt 0:05:14]} 27. Rc1 {[%emt 0:01:57]} Rd6 {[%emt 0:00:
00]} 28. Kg2 {[%emt 0:06:37]} Rf6 {[%emt 0:01:33]} 29. Kg3 {[%emt 0:02:24]} g5
{[%emt 0:01:00]} 30. fxg5 {[%emt 0:01:13]} hxg5 {[%emt 0:00:06]} 31. f3 {
[%emt 0:01:20]} Be3 {[%emt 0:06:50]} 32. Re1 {[%emt 0:01:24]} d4 {[%emt 0:00:
00]} 33. Nc5 {[%emt 0:02:16]} Bc2 {[%emt 0:02:19]} 34. Bd3 {[%emt 0:00:24]}
Bxd3 {[%emt 0:00:31]} 35. Nxd3 {[%emt 0:00:03]} Kf8 {[%emt 0:02:02]} 36. Kg2 {
[%emt 0:02:46]} Rd6 {[%emt 0:00:41]} 37. a4 {[%emt 0:00:00]} Rd8 {[%emt 0:00:
00]} 38. Rd1 {[%emt 0:00:43]} Rb8 {[%emt 0:01:43]} 39. Rb1 {[%emt 0:03:08]} Ke7
{[%emt 0:00:28]} 40. Ne5 {[%emt 0:01:19]} Kd6 {[%emt 0:00:41]} 41. Nxf7+ {
[%emt 0:30:29]} Kd5 {[%emt 0:30:46]} 42. Nh6 {[%emt 0:00:42]} c5 {[%emt 0:00:
00]} 43. b5 {[%emt 0:00:22]} c4 {[%emt 0:00:17]} 44. Nf5 {[%emt 0:00:35]} Bf4 {
[%emt 0:04:42]} 45. Ne7+ {[%emt 0:00:34]} Kc5 {[%emt 0:00:09]} 46. Ng6 {
[%emt 0:00:23]} c3 {[%emt 0:01:25]} 47. Nxf4 {[%emt 0:00:15]} gxf4 {[%emt 0:00:
00]} 48. Kf2 {[%emt 0:00:39]} d3 {[%emt 0:00:49]} 49. Rg1 {[%emt 0:00:44]} c2 {
[%emt 0:00:37]} 50. Rg6 {[%emt 0:00:31]} Kb4 {[%emt 0:00:42]} 51. Rc6 {[%emt 0:
00:00]} d2 {[%emt 0:00:10]} 0-1

[Event "44th Chess Olympiad Women 2022"]
[Site "Chennai"]
[Date "2022.08.01"]
[Round "4.25"]
[White "Gazola, Vanessa Ramos"]
[Black "Popovic, Mateja"]
[Result "1-0"]
[WhiteElo "2000"]
[BlackElo "1634"]
[Annotator "NA RC"]
[PlyCount "57"]
[EventDate "2022.??.??"]
[TimeControl "60"]

1. d4 {[%emt 0:00:04]} Nf6 {[%emt 0:00:42]} 2. c4 {[%emt 0:00:15]} e6 {[%emt 0:
00:00]} 3. Nf3 {[%emt 0:00:11]} Bb4+ {[%emt 0:01:55]} 4. Bd2 {[%emt 0:01:15]}
Qe7 {[%emt 0:00:42]} 5. g3 {[%emt 0:01:48]} Nc6 {[%emt 0:05:20]} 6. Bg2 {
[%emt 0:01:04]} Bxd2+ {[%emt 0:02:12]} 7. Nbxd2 {[%emt 0:00:39]} d6 {[%emt 0:
00:00]} 8. e4 {[%emt 0:01:09]} a5 {[%emt 0:08:17]} 9. O-O {[%emt 0:04:26]} e5 {
[%emt 0:01:47]} 10. d5 {[%emt 0:00:34]} Nb8 {[%emt 0:00:21]} 11. Ne1 {[%emt 0:
00:00]} Bd7 {[%emt 0:03:13]} 12. Nd3 {[%emt 0:13:14]} Na6 {[%emt 0:03:36]} 13.
b3 {[%emt 0:02:45]} b6 {[%emt 0:08:05]} 14. a3 {[%emt 0:02:08]} Nc5 {[%emt 0:
00:00]} 15. Nb2 {[%emt 0:01:06]} b5 {[%emt 0:22:43]} 16. Qc2 {[%emt 0:14:40]}
bxc4 {[%emt 0:10:01]} 17. Nbxc4 {[%emt 0:04:28]} O-O {[%emt 0:02:21]} 18. Qc3 {
[%emt 0:07:03]} Bb5 {[%emt 0:01:43]} 19. Rfc1 {[%emt 0:07:34]} Bxc4 {[%emt 0:
00:00]} 20. Qxc4 {[%emt 0:01:07]} Nfd7 {[%emt 0:04:49]} 21. Qc2 {[%emt 0:05:17]
} Rfb8 {[%emt 0:04:24]} 22. Rab1 {[%emt 0:02:38]} Na6 {[%emt 0:02:31]} 23. Bf1
{[%emt 0:01:35]} Ndc5 {[%emt 0:01:26]} 24. Nc4 {[%emt 0:04:57]} a4 {[%emt 0:00:
00]} 25. bxa4 {[%emt 0:00:46]} Qd7 {[%emt 0:03:52]} 26. a5 {[%emt 0:03:29]} Nb7
{[%emt 0:00:32]} 27. Nd2 {[%emt 0:04:55]} Nac5 {[%emt 0:04:20]} 28. a6 {
[%emt 0:03:38]} Nxa6 {[%emt 0:00:44]} 29. Bxa6 {[%emt 0:00:13]} 1-0

[Event "44th Chess Olympiad Women 2022"]
[Site "Chennai"]
[Date "2022.08.01"]
[Round "4.25"]
[White "Librelato, Kathie Goulart"]
[Black "Koljevic, Nikolina"]
[Result "1-0"]
[WhiteElo "2255"]
[BlackElo "2014"]
[Annotator "NA RC"]
[PlyCount "77"]
[EventDate "2022.??.??"]
[TimeControl "60"]

1. e4 {[%emt 0:00:06]} c6 {[%emt 0:00:15]} 2. Nc3 {[%emt 0:00:13]} d5 {[%emt 0:
00:00]} 3. Nf3 {[%emt 0:00:10]} Bg4 {[%emt 0:00:46]} 4. h3 {[%emt 0:00:05]}
Bxf3 {[%emt 0:00:39]} 5. Qxf3 {[%emt 0:00:06]} e6 {[%emt 0:00:07]} 6. Be2 {
[%emt 0:01:29]} Nd7 {[%emt 0:07:38]} 7. O-O {[%emt 0:07:32]} Ngf6 {[%emt 0:00:
00]} 8. d4 {[%emt 0:03:29]} dxe4 {[%emt 0:00:35]} 9. Nxe4 {[%emt 0:00:08]} Nxe4
{[%emt 0:01:24]} 10. Qxe4 {[%emt 0:00:05]} Nf6 {[%emt 0:03:21]} 11. Qd3 {
[%emt 0:01:27]} Qc7 {[%emt 0:06:12]} 12. c4 {[%emt 0:08:28]} Rd8 {[%emt 0:00:
00]} 13. Rd1 {[%emt 0:09:40]} Be7 {[%emt 0:04:38]} 14. Be3 {[%emt 0:04:03]} O-O
{[%emt 0:01:48]} 15. Rac1 {[%emt 0:00:42]} h6 {[%emt 0:05:46]} 16. Bf3 {
[%emt 0:06:58]} Qb8 {[%emt 0:06:42]} 17. Qc3 {[%emt 0:02:04]} Bd6 {[%emt 0:00:
00]} 18. b4 {[%emt 0:06:59]} Bf4 {[%emt 0:04:02]} 19. a4 {[%emt 0:00:35]} a6 {
[%emt 0:01:07]} 20. Rb1 {[%emt 0:02:49]} Rc8 {[%emt 0:07:34]} 21. b5 axb5 {
[%emt 0:05:44]} 22. axb5 {[%emt 0:16:54]} Bxe3 {[%emt 0:00:00]} 23. fxe3 {
[%emt 0:00:17]} Qc7 {[%emt 0:00:09]} 24. Qb3 {[%emt 0:10:30]} cxb5 {[%emt 0:00:
00]} 25. c5 {[%emt 0:00:24]} e5 {[%emt 0:09:32]} 26. Qxb5 {[%emt 0:01:40]} e4 {
[%emt 0:00:26]} 27. Be2 {[%emt 0:00:06]} Qg3 {[%emt 0:01:18]} 28. Rb3 {[%emt 0:
00:00]} Rc7 {[%emt 0:03:40]} 29. d5 {[%emt 0:01:02]} Rfc8 {[%emt 0:00:04]} 30.
d6 {[%emt 0:00:44]} Rxc5 {[%emt 0:00:43]} 31. d7 {[%emt 0:01:24]} Nxd7 {
[%emt 0:00:31]} 32. Qxd7 {[%emt 0:00:05]} Rc2 {[%emt 0:03:42]} 33. Qg4 {
[%emt 0:03:11]} Qe5 {[%emt 0:02:56]} 34. Rxb7 {[%emt 0:00:24]} Qc3 {[%emt 0:00:
00]} 35. Kf2 {[%emt 0:03:45]} Qf6+ {[%emt 0:02:03]} 36. Kg1 {[%emt 0:01:57]}
Qc3 {[%emt 0:00:34]} 37. Kh1 {[%emt 0:01:05]} Qxe3 {[%emt 0:00:45]} 38. Qf5 {
[%emt 0:00:32]} Rf8 {[%emt 0:00:59]} 39. Rxf7 {[%emt 0:01:30]} 1-0

[Event "44th Chess Olympiad Women 2022"]
[Site "Chennai"]
[Date "2022.08.01"]
[Round "4.25"]
[White "Milovic, Aleksandra"]
[Black "Alboredo, Julia"]
[Result "1/2-1/2"]
[WhiteElo "2129"]
[BlackElo "2264"]
[Annotator "NA RC"]
[PlyCount "88"]
[EventDate "2022.??.??"]
[TimeControl "60"]

1. d4 {[%emt 0:00:11]} d5 {[%emt 0:00:27]} 2. Nc3 {[%emt 0:00:08]} Nf6 {
[%emt 0:00:10]} 3. Bf4 {[%emt 0:00:08]} e6 {[%emt 0:02:09]} 4. e3 {[%emt 0:00:
00]} a6 {[%emt 0:01:50]} 5. h4 {[%emt 0:02:00]} c5 {[%emt 0:01:29]} 6. dxc5 {
[%emt 0:02:53]} Bxc5 {[%emt 0:00:20]} 7. Bd3 {[%emt 0:02:09]} Nc6 {[%emt 0:00:
00]} 8. Nf3 {[%emt 0:01:15]} Qe7 {[%emt 0:10:55]} 9. Ne5 {[%emt 0:07:26]} Bd6 {
[%emt 0:00:48]} 10. Ng4 {[%emt 0:17:51]} Bxf4 {[%emt 0:04:40]} 11. exf4 {
[%emt 0:00:39]} Nd7 {[%emt 0:07:44]} 12. g3 {[%emt 0:13:47]} h5 {[%emt 0:06:51]
} 13. Nh2 {[%emt 0:00:46]} b5 {[%emt 0:00:21]} 14. O-O {[%emt 0:00:51]} Nf6 {
[%emt 0:07:35]} 15. Nf3 {[%emt 0:08:17]} O-O {[%emt 0:04:48]} 16. Re1 {[%emt 0:
00:00]} Qc5 {[%emt 0:06:46]} 17. Qe2 {[%emt 0:06:12]} Nb4 {[%emt 0:02:25]} 18.
Ne5 {[%emt 0:07:05]} Bb7 {[%emt 0:08:51]} 19. a3 {[%emt 0:09:26]} Nxd3 {
[%emt 0:00:29]} 20. cxd3 {[%emt 0:01:21]} Rad8 {[%emt 0:03:29]} 21. Rac1 {
[%emt 0:00:21]} Qb6 {[%emt 0:00:29]} 22. Red1 {[%emt 0:04:47]} a5 {[%emt 0:00:
00]} 23. d4 {[%emt 0:00:47]} Ba6 {[%emt 0:00:24]} 24. b4 {[%emt 0:02:02]} Rc8 {
[%emt 0:02:49]} 25. Nd3 {[%emt 0:03:10]} axb4 {[%emt 0:00:43]} 26. axb4 {
[%emt 0:00:14]} Rc4 {[%emt 0:00:16]} 27. Nc5 {[%emt 0:02:33]} Rxb4 {[%emt 0:00:
00]} 28. f5 {[%emt 0:02:04]} Bc8 {[%emt 0:03:31]} 29. Rb1 {[%emt 0:00:37]} Rxb1
{[%emt 0:00:29]} 30. Rxb1 {[%emt 0:00:07]} b4 {[%emt 0:00:14]} 31. Na2 {
[%emt 0:00:47]} exf5 {[%emt 0:00:43]} 32. Rxb4 {[%emt 0:00:44]} Qd6 {[%emt 0:
00:00]} 33. Nc3 {[%emt 0:00:23]} f4 {[%emt 0:02:39]} 34. Qe5 {[%emt 0:00:19]}
Qc6 {[%emt 0:02:59]} 35. Qxf4 {[%emt 0:00:18]} Re8 {[%emt 0:00:19]} 36. Rb1 {
[%emt 0:00:37]} Ne4 {[%emt 0:01:47]} 37. N3xe4 {[%emt 0:00:36]} dxe4 {[%emt 0:
00:00]} 38. Re1 {[%emt 0:00:31]} f5 {[%emt 0:01:10]} 39. Qg5 {[%emt 0:00:46]}
Rf8 {[%emt 0:01:49]} 40. Qe7 {[%emt 0:03:19]} Qd5 {[%emt 0:01:26]} 41. Qe5 {
[%emt 0:03:24]} Qxe5 {[%emt 0:08:29]} 42. dxe5 {[%emt 0:00:05]} Rd8 {[%emt 0:
00:00]} 43. e6 {[%emt 0:10:06]} Re8 {[%emt 0:03:02]} 44. f3 {[%emt 0:00:32]}
Bxe6 {[%emt 0:00:24]} 1/2-1/2

[Event "44th Chess Olympiad Women 2022"]
[Site "Chennai"]
[Date "2022.08.01"]
[Round "4.26"]
[White "Mayeregger Gonzalez, Renata"]
[Black "Hapala, Elisabeth"]
[Result "1-0"]
[WhiteElo "1479"]
[BlackElo "2113"]
[Annotator "NA RC"]
[PlyCount "106"]
[EventDate "2022.??.??"]
[TimeControl "60"]

1. e4 {[%emt 0:00:04]} c5 {[%emt 0:00:05]} 2. Nc3 {[%emt 0:00:07]} e6 {[%emt 0:
00:00]} 3. g3 {[%emt 0:00:14]} Nc6 {[%emt 0:00:13]} 4. Nge2 {[%emt 0:00:18]}
Nf6 {[%emt 0:00:16]} 5. Bg2 {[%emt 0:00:22]} Be7 {[%emt 0:00:11]} 6. O-O {
[%emt 0:00:13]} O-O {[%emt 0:00:14]} 7. d3 {[%emt 0:00:15]} d6 {[%emt 0:00:37]}
8. h3 {[%emt 0:00:28]} Rb8 {[%emt 0:00:34]} 9. a4 {[%emt 0:00:26]} a6 {[%emt 0:
00:00]} 10. g4 {[%emt 0:00:28]} b5 {[%emt 0:15:45]} 11. axb5 {[%emt 0:00:46]}
axb5 {[%emt 0:00:02]} 12. Ng3 {[%emt 0:00:31]} b4 {[%emt 0:04:48]} 13. Nce2 {
[%emt 0:00:12]} Bb7 {[%emt 0:03:04]} 14. f4 {[%emt 0:03:06]} Nd7 {[%emt 0:00:
00]} 15. Be3 {[%emt 0:02:40]} Ra8 {[%emt 0:04:01]} 16. Rxa8 {[%emt 0:04:08]}
Qxa8 {[%emt 0:00:10]} 17. f5 {[%emt 0:03:31]} Qa2 {[%emt 0:12:16]} 18. b3 {
[%emt 0:10:27]} Rc8 {[%emt 0:11:51]} 19. g5 {[%emt 0:07:20]} Nd4 {[%emt 0:00:
00]} 20. Bxd4 {[%emt 0:09:03]} cxd4 {[%emt 0:00:07]} 21. fxe6 {[%emt 0:00:29]}
fxe6 {[%emt 0:00:20]} 22. Nxd4 {[%emt 0:02:01]} Qa7 {[%emt 0:12:50]} 23. Qa1 {
[%emt 0:05:27]} Qc5 {[%emt 0:00:23]} 24. Kh2 {[%emt 0:02:05]} e5 {[%emt 0:00:
00]} 25. Ne6 {[%emt 0:02:07]} Qxc2 {[%emt 0:00:12]} 26. Nf5 {[%emt 0:00:55]}
Bf8 {[%emt 0:14:24]} 27. Nxf8 {[%emt 0:00:46]} Rxf8 {[%emt 0:00:01]} 28. Ne7+ {
[%emt 0:00:30]} Kh8 {[%emt 0:00:12]} 29. Rxf8+ {[%emt 0:00:15]} Nxf8 {[%emt 0:
00:00]} 30. Qf1 {[%emt 0:01:04]} Ng6 {[%emt 0:01:10]} 31. Qf7 {[%emt 0:00:42]}
Nxe7 {[%emt 0:00:35]} 32. Qxe7 {[%emt 0:00:22]} Qc8 {[%emt 0:03:23]} 33. Qxd6 {
[%emt 0:00:20]} Qe8 {[%emt 0:01:22]} 34. Qxb4 {[%emt 0:01:23]} Qf7 {[%emt 0:00:
00]} 35. Kg1 {[%emt 0:01:27]} g6 {[%emt 0:01:36]} 36. Qd6 {[%emt 0:01:15]} Qxb3
{[%emt 0:00:56]} 37. Qxe5+ {[%emt 0:00:16]} Kg8 {[%emt 0:00:05]} 38. Qe8+ {
[%emt 0:00:33]} Kg7 {[%emt 0:00:01]} 39. Qd7+ {[%emt 0:03:37]} Kg8 {[%emt 0:00:
00]} 40. Kh2 {[%emt 0:00:48]} Qb2 {[%emt 0:01:52]} 41. Qd8+ {[%emt 0:31:25]}
Kg7 {[%emt 0:30:16]} 42. Qf6+ {[%emt 0:00:20]} Qxf6 {[%emt 0:00:01]} 43. gxf6+
{[%emt 0:00:19]} Kxf6 {[%emt 0:00:01]} 44. e5+ {[%emt 0:00:01]} Kxe5 {[%emt 0:
00:00]} 45. Bxb7 {[%emt 0:00:05]} g5 {[%emt 0:00:45]} 46. Kg3 {[%emt 0:00:20]}
Kd4 {[%emt 0:00:23]} 47. Be4 {[%emt 0:00:22]} h5 {[%emt 0:00:04]} 48. h4 {
[%emt 0:00:24]} g4 {[%emt 0:00:33]} 49. Kf4 {[%emt 0:00:28]} Kc3 {[%emt 0:00:
00]} 50. Bg6 {[%emt 0:00:19]} Kd4 {[%emt 0:00:07]} 51. Bxh5 {[%emt 0:00:16]}
Kxd3 {[%emt 0:00:00]} 52. Bxg4 {[%emt 0:00:00]} Kd4 {[%emt 0:00:00]} 53. Kf5 {
[%emt 0:00:00]} Kd5 {[%emt 0:00:00]} 1-0

[Event "44th Chess Olympiad Women 2022"]
[Site "Chennai"]
[Date "2022.08.01"]
[Round "4.26"]
[White "Mayrhuber, Nikola"]
[Black "Montiel Caceres, Helen"]
[Result "1-0"]
[WhiteElo "2141"]
[BlackElo "1763"]
[Annotator "NA RC"]
[PlyCount "113"]
[EventDate "2022.??.??"]
[TimeControl "60"]

1. d4 {[%emt 0:00:02]} Nf6 {[%emt 0:00:06]} 2. c4 {[%emt 0:00:04]} e6 {[%emt 0:
00:00]} 3. Nc3 {[%emt 0:00:08]} Bb4 {[%emt 0:00:06]} 4. Bd2 {[%emt 0:00:05]}
O-O {[%emt 0:00:06]} 5. Nf3 {[%emt 0:00:06]} d5 {[%emt 0:00:06]} 6. e3 {
[%emt 0:00:13]} b6 {[%emt 0:00:10]} 7. cxd5 {[%emt 0:00:09]} exd5 {[%emt 0:00:
00]} 8. Rc1 {[%emt 0:00:05]} c5 {[%emt 0:01:09]} 9. a3 {[%emt 0:06:37]} Bxc3 {
[%emt 0:01:38]} 10. Bxc3 {[%emt 0:00:10]} Ne4 {[%emt 0:00:07]} 11. Be2 {
[%emt 0:07:22]} Bb7 {[%emt 0:05:36]} 12. O-O {[%emt 0:00:55]} Nd7 {[%emt 0:00:
00]} 13. Be1 {[%emt 0:01:34]} Rc8 {[%emt 0:08:38]} 14. Bb5 {[%emt 0:16:07]}
Ndf6 {[%emt 0:08:05]} 15. Ne5 {[%emt 0:03:53]} Nd6 {[%emt 0:21:24]} 16. Bd3 {
[%emt 0:01:25]} Nd7 {[%emt 0:07:17]} 17. Qh5 {[%emt 0:11:17]} g6 {[%emt 0:00:
00]} 18. Qh6 {[%emt 0:04:48]} Nxe5 {[%emt 0:04:55]} 19. dxe5 {[%emt 0:00:08]}
Nc4 {[%emt 0:00:04]} 20. Bxc4 {[%emt 0:13:41]} dxc4 {[%emt 0:00:06]} 21. f3 {
[%emt 0:00:52]} Bd5 {[%emt 0:03:51]} 22. Bh4 {[%emt 0:01:12]} f6 {[%emt 0:00:
00]} 23. Bxf6 {[%emt 0:03:20]} Rxf6 {[%emt 0:00:06]} 24. exf6 {[%emt 0:00:10]}
Qxf6 {[%emt 0:00:04]} 25. Rcd1 {[%emt 0:02:06]} Bf7 {[%emt 0:00:16]} 26. Rd2 {
[%emt 0:04:00]} c3 {[%emt 0:05:01]} 27. bxc3 {[%emt 0:00:21]} Qxc3 {[%emt 0:00:
00]} 28. Rfd1 {[%emt 0:00:25]} Re8 {[%emt 0:00:35]} 29. Rd3 {[%emt 0:06:26]}
Qf6 {[%emt 0:10:34]} 30. e4 {[%emt 0:03:46]} Be6 {[%emt 0:00:00]} 31. h4 {
[%emt 0:04:07]} Qg7 {[%emt 0:00:00]} 32. Qf4 {[%emt 0:01:02]} c4 {[%emt 0:00:
00]} 33. Rd8 {[%emt 0:00:55]} Qe7 {[%emt 0:02:31]} 34. Rxe8+ {[%emt 0:01:18]}
Qxe8 {[%emt 0:00:05]} 35. Qc7 {[%emt 0:00:11]} Qf7 {[%emt 0:00:18]} 36. Rd8+ {
[%emt 0:05:05]} Kg7 {[%emt 0:00:05]} 37. Qe5+ {[%emt 0:00:24]} Qf6 {[%emt 0:00:
00]} 38. Qc7+ {[%emt 0:03:19]} Bf7 {[%emt 0:00:05]} 39. Rd7 {[%emt 0:00:32]}
Qa1+ {[%emt 0:04:47]} 40. Kh2 {[%emt 0:01:18]} Qf6 {[%emt 0:00:06]} 41. Kg1 {
[%emt 0:07:08]} Qa1+ {[%emt 0:00:33]} 42. Kf2 {[%emt 0:00:11]} Qf6 {[%emt 0:00:
00]} 43. Qxc4 {[%emt 0:03:01]} Qxh4+ {[%emt 0:01:19]} 44. Ke2 {[%emt 0:01:53]}
Qf6 {[%emt 0:00:27]} 45. Rxa7 {[%emt 0:05:37]} Qb2+ {[%emt 0:02:28]} 46. Kf1 {
[%emt 0:00:19]} Qa1+ {[%emt 0:00:06]} 47. Kf2 {[%emt 0:00:06]} Qb2+ {[%emt 0:
00:00]} 48. Kg3 {[%emt 0:00:20]} Qe5+ {[%emt 0:00:06]} 49. f4 {[%emt 0:00:45]}
Qf6 {[%emt 0:00:05]} 50. e5 {[%emt 0:03:44]} Qf5 {[%emt 0:00:52]} 51. e6 {
[%emt 0:00:31]} Kh6 {[%emt 0:00:09]} 52. exf7 {[%emt 0:01:24]} Kh5 {[%emt 0:00:
00]} 53. f8=Q {[%emt 0:02:05]} Qg4+ {[%emt 0:00:49]} 54. Kf2 {[%emt 0:00:08]}
Qh4+ {[%emt 0:00:03]} 55. Ke2 {[%emt 0:01:10]} Qg4+ {[%emt 0:00:06]} 56. Kd2 {
[%emt 0:00:10]} Qxg2+ {[%emt 0:00:10]} 57. Qe2+ {[%emt 0:00:05]} 1-0